bitfinex-derivatives/quotes_SOLF0:USTF0_20250803
["timestamp","ask_amount","ask_price","bid_price","bid_amount"]
[1754182921374,3.32,159.74,159.72,3.45]
[1754182921676,3.32,159.74,159.7,3.45]
[1754182921878,122.54,159.76,159.72,3.45]
[1754182922073,119.22,159.76,159.72,3.45]
[1754182922374,6.2617,159.74,159.73,9.33771032]
[1754182922970,6.2617,159.74,159.73,3.45]
[1754182923276,6.2617,159.74,159.73,9.34010552]
[1754182925576,6.2613,159.75,159.74,3.52]
[1754182926174,9.6113,159.75,159.74,3.52]
[1754182926480,3.35,159.73,159.7,3.52]
[1754182926672,3.35,159.73,159.71,9.41413118]
[1754182926871,12.75616785,159.78,159.65,3.52]
[1754182926872,119.2,159.72,159.65,3.52]
[1754182927072,119.2,159.72,159.64,5.74480417]
[1754182927073,122.53,159.72,159.67,3.52]
[1754182927280,6.2632,159.71,159.7,3.52]
[1754182927577,119.18,159.75,159.71,3.52]
[1754182927772,119.18,159.75,159.72,5.89487868]
[1754182927973,125.4413,159.75,159.74,3.52]
[1754182928167,125.4413,159.75,159.74,9.41487868]
[1754182928474,125.4413,159.75,159.74,3.52]
[1754182928675,125.4413,159.75,159.74,9.41222761]
[1754182930277,128.7913,159.75,159.74,5.89222761]
[1754182930473,6.2623,159.73,159.68,3.52]
[1754182930675,6.2623,159.73,159.69,5.89202254]
[1754182930872,3.35,159.73,159.7,5.89202254]
[1754182931073,9.6121,159.73,159.72,3.52]
[1754182931274,9.6121,159.73,159.72,9.41202254]
[1754182931676,6.2621,159.73,159.72,9.41202254]
[1754182932575,128.7913,159.75,159.73,3.52]
[1754182932778,119.16,159.77,159.76,3.52]
[1754182932969,119.16,159.77,159.74,3.52]
[1754182933175,6.2616,159.75,159.74,3.52]
[1754182933479,6.2616,159.75,159.74,9.40920861]
[1754182934073,6.261,159.76,159.75,3.52]
[1754182935581,125.4205,159.77,159.75,3.52]
[1754182935781,125.4205,159.77,159.76,3.52]
[1754182936382,128.7705,159.77,159.76,3.52]
[1754182937083,6.2611,159.76,159.75,3.52]
[1754182937791,6.2616,159.75,159.7,5.74480417]
[1754182938080,6.2616,159.75,159.71,5.89094284]
[1754182938278,6.2616,159.75,159.72,5.89094284]
[1754182938482,6.2616,159.75,159.74,3.52]
[1754182938783,6.2616,159.75,159.74,9.41094284]
[1754182939084,9.6116,159.75,159.74,9.41094284]
[1754182939284,119.16,159.77,159.67,5.74480417]
[1754182939479,3.35,159.75,159.67,5.74480417]
[1754182940580,7.01136368,159.78,159.7,5.74480417]
[1754182940780,119.1,159.76,159.7,5.74480417]
[1754182940981,9.6124,159.73,159.7,5.74480417]
[1754182941383,9.6124,159.73,159.72,3.52]
[1754182941578,6.2618,159.74,159.72,3.52]
[1754182941887,9.6118,159.74,159.73,3.52]
[1754182942090,122.45,159.76,159.74,3.52]
[1754182942284,122.45,159.76,159.75,3.52]
[1754182942784,122.45,159.76,159.66,3.52]
[1754182942987,3.35,159.75,159.72,3.52]
[1754182943184,3.35,159.75,159.74,3.52]
[1754182943586,9.6116,159.75,159.74,3.52]
[1754182943983,9.6116,159.75,158.83,123.5667743]
[1754182943984,3.35,159.75,159.68,3.59329242]
[1754182944190,9.6129,159.71,159.68,3.59329242]
[1754182944490,3.35,159.71,159.61,97.74845245]
[1754182944686,6.94329242,159.71,159.65,3.52]
[1754182944983,3.35,159.7,159.63,3.52]
[1754182945785,9.6144,159.68,159.64,3.52]
[1754182945991,3.35,159.68,159.64,3.52]
[1754182946592,3.35,159.68,159.64,7.11329242]
[1754182946790,9.6144,159.68,159.65,3.52]
[1754182947281,3.35,159.69,159.65,3.52]
[1754182948096,9.614,159.69,159.65,3.52]
[1754182948590,3.35,159.71,159.63,3.52]
[1754182949285,3.35,159.71,159.61,101.26845245]
[1754182949286,3.35,159.7,159.61,101.26845245]
[1754182949490,10.36136368,159.7,159.61,101.26845245]
[1754182949699,3.35,159.69,159.61,101.26845245]
[1754182949995,9.6157,159.64,159.62,3.52]
[1754182950290,3.35,159.63,159.62,3.52]
[1754182950490,3.35,159.63,159.61,97.74845245]
[1754182950691,3.35,159.63,159.6,3.52]
[1754182950884,3.35,159.65,159.6,3.52]
[1754182951086,6.2658,159.64,159.6,3.52]
[1754182951285,3.35,159.65,159.61,9.30780809]
[1754182951490,3.35,159.65,159.62,5.78780809]
[1754182951689,3.35,159.63,159.59,3.52]
[1754182951893,119.06,159.66,159.6,9.30554415]
[1754182951894,3.35,159.65,159.6,9.30554415]
[1754182952093,3.35,159.65,159.61,9.30554415]
[1754182952396,6.2656,159.64,159.62,5.78554415]
[1754182952591,3.35,159.62,159.61,3.52]
[1754182952797,122.41,159.66,159.62,3.52]
[1754182952987,3.35,159.67,159.63,5.78287796]
[1754182953186,3.35,159.67,159.6,3.52]
[1754182953387,3.35,159.67,159.61,5.7773501]
[1754182953688,3.35,159.67,159.6,3.52]
[1754182953990,3.35,159.67,159.61,5.76747181]
[1754182954194,3.51,159.63,159.62,5.76747181]
[1754182954394,3.51,159.67,159.6,3.49]
[1754182954595,3.51,159.67,159.62,3.49]
[1754182954889,3.51,159.66,159.65,3.49]
[1754182955193,3.51,159.66,159.6,3.49]
[1754182955388,6.2653,159.65,159.62,3.49]
[1754182955588,119.06,159.68,159.62,3.49]
[1754182955589,3.51,159.63,159.62,3.49]
[1754182955788,3.51,159.63,159.62,9.25444351]
[1754182956593,119.06,159.68,159.62,5.76444351]
[1754182956888,3.51,159.64,159.63,3.49]
[1754182957196,9.7756,159.64,159.63,3.49]
[1754182958194,3.51,159.66,159.59,5.2754549]
[1754182958492,3.51,159.66,159.65,3.49]
[1754182958888,119.06,159.68,159.63,3.49]
[1754182958889,122.57,159.68,159.63,3.49]
[1754182959093,122.57,159.68,159.64,5.77436292]
[1754182959291,122.57,159.68,159.67,3.49]
[1754182959491,3.51,159.66,159.64,3.49]
[1754182959688,119.06,159.68,159.64,3.49]
[1754182959892,3.51,159.65,159.64,3.49]
[1754182960092,3.51,159.65,159.64,9.26409375]
[1754182960297,3.51,159.65,159.64,5.77409375]
[1754182960498,3.51,159.65,159.64,9.26409375]
[1754182962286,9.7752,159.65,159.64,3.49]
[1754182962691,3.51,159.65,159.64,3.49]
[1754182963503,3.51,159.67,159.65,3.49]
[1754182963696,3.51,159.66,159.65,3.49]
[1754182965394,9.7748,159.66,159.65,3.49]
[1754182965592,3.51,159.67,159.63,5.77571772]
[1754182965794,3.51,159.67,159.61,5.77711665]
[1754182965997,3.51,159.67,159.62,5.77711665]
[1754182966296,5.2754549,159.64,159.56,3.49]
[1754182966500,3.51,159.62,159.57,5.78073531]
[1754182966691,3.51,159.62,159.56,3.49]
[1754182966896,3.51,159.62,159.52,5.2754549]
[1754182966897,3.51,159.58,159.57,9.2692925]
[1754182967091,3.51,159.58,159.57,5.7792925]
[1754182967305,3.51,159.62,159.55,9.26718276]
[1754182967504,9.7783,159.58,159.56,9.26718276]
[1754182967691,9.7783,159.58,159.57,9.26653668]
[1754182967893,9.7783,159.58,159.57,5.77653668]
[1754182968198,3.60085768,159.62,159.5,103.23427604]
[1754182968199,3.51,159.57,159.53,3.49]
[1754182968395,119.02,159.58,159.54,5.77822408]
[1754182968599,3.51,159.54,159.52,3.49]
[1754182968805,3.51,159.57,159.54,3.49]
[1754182968997,3.51,159.57,159.55,3.49]
[1754182969299,3.51,159.56,159.55,3.49]
[1754182969496,3.51,159.55,159.54,3.49]
[1754182969696,3.51,159.57,159.55,3.49]
[1754182970004,9.7787,159.57,159.51,3.49]
[1754182970300,18.81,159.62,159.54,3.49]
[1754182970503,119.04,159.61,159.55,5.76844217]
[1754182970696,3.51,159.64,159.57,3.49]
[1754182970895,3.51,159.64,159.59,3.49]
[1754182971101,3.51,159.63,159.59,5.76844217]
[1754182971401,3.51,159.62,159.61,3.49]
[1754182971601,3.51,159.63,159.62,3.49]
[1754182971804,3.51,159.63,159.6,3.49]
[1754182972004,3.51,159.62,159.6,3.49]
[1754182972199,3.51,159.62,159.61,3.49]
[1754182973003,3.51,159.62,159.58,5.76270875]
[1754182973004,3.51,159.63,159.62,3.49]
[1754182973609,3.51,159.62,159.58,5.76354352]
[1754182973902,3.51,159.62,159.6,3.49]
[1754182974405,3.51,159.61,159.6,3.49]
[1754182975308,3.51,159.62,159.6,3.49]
[1754182975901,3.51,159.62,159.56,5.28309837]
[1754182976110,3.51,159.62,159.61,3.49]
[1754182976808,3.51,159.64,159.57,3.49]
[1754182977007,3.51,159.64,159.6,3.49]
[1754182977301,3.51,159.64,159.61,3.49]
[1754182977712,3.51,159.64,159.63,3.49]
[1754182978708,9.7756,159.64,159.63,3.49]
[1754182978904,3.51,159.63,159.61,3.49]
[1754182979097,3.51,159.64,159.61,3.49]
[1754182979298,119.04,159.65,159.61,3.49]
[1754182979504,3.51,159.63,159.59,5.28309837]
[1754182979805,3.51,159.63,159.6,9.25574971]
[1754182980005,3.51,159.62,159.61,3.49]
[1754182980805,122.55,159.65,159.61,3.49]
[1754182981010,122.55,159.65,159.5,5.28309837]
[1754182981011,3.51,159.63,159.57,8.77309837]
[1754182981308,3.51,159.61,159.58,5.76276244]
[1754182981508,3.51,159.59,159.56,3.49]
[1754182981702,3.51,159.58,159.57,5.76791832]
[1754182981899,3.51,159.58,159.54,5.76791832]
[1754182982209,3.51,159.58,159.51,3.49]
[1754182982405,6.2692,159.55,159.52,5.76791832]
[1754182982711,3.51,159.54,159.53,9.25791832]
[1754182983704,3.52,159.54,159.51,3.47]
[1754182983907,119.0,159.55,159.52,5.76791832]
[1754182984209,9.7897,159.54,159.53,3.47]
[1754182984612,6.2697,159.54,159.5,5.7590849]
[1754182984806,3.52,159.53,159.52,3.47]
[1754182985002,122.52,159.55,159.52,5.7590849]
[1754182985204,122.52,159.55,159.54,3.47]
[1754182985412,122.52,159.55,159.48,5.28309837]
[1754182985611,3.52,159.54,159.53,3.47]
[1754182985810,125.2695,159.55,159.53,9.23236458]
[1754182986115,119.0,159.55,159.53,3.47]
[1754182986312,5.28309837,159.61,159.53,3.47]
[1754182986611,122.52,159.6,159.55,3.47]
[1754182986814,6.2679,159.59,159.56,5.76287817]
[1754182987007,6.2679,159.59,159.57,3.47]
[1754182987407,6.2684,159.57,159.52,3.47]
[1754182987603,6.2684,159.57,159.53,5.76523325]
[1754182987806,3.52,159.59,159.56,6.2687]
[1754182988002,119.0,159.6,159.57,5.76523325]
[1754182988206,3.52,159.62,159.58,5.76523325]
[1754182988408,9.7875,159.6,159.59,3.325e-05]
[1754182988611,3.52,159.6,159.48,3.47]
[1754182988803,118.98,159.63,159.48,3.47]
[1754182988804,5.28309837,159.58,159.48,3.47]
[1754182989003,18.81,159.56,159.48,3.47]
[1754182989203,3.52,159.54,159.48,3.47]
[1754182989417,6.272,159.48,159.45,3.47]
[1754182989611,9.792,159.48,159.46,3.47]
[1754182989917,3.52,159.47,159.46,3.47]
[1754182990316,3.52,159.47,159.42,3.47]
[1754182990513,3.52,159.45,159.43,3.47]
[1754182991314,3.52,159.47,159.39,3.47]
[1754182991716,3.52,159.45,159.36,6.96970206]
[1754182991913,6.275,159.41,159.36,6.96970206]
[1754182992120,3.52,159.4,159.35,3.47]
[1754182992315,3.52,159.4,159.33,3.47]
[1754182992520,9.7951,159.4,159.33,9.7477]
[1754182992712,9.7951,159.4,159.32,5.28309837]
[1754182992713,3.52,159.4,159.34,3.47]
[1754182993413,3.52,159.4,159.34,9.7474]
[1754182993616,3.52,159.39,159.36,3.47]
[1754182993814,3.52,159.39,159.37,3.47]
[1754182994016,119.0,159.41,159.35,6.277]
[1754182994217,119.0,159.41,159.32,5.28309837]
[1754182994420,119.0,159.41,159.3,5.28309837]
[1754182994917,5.28309837,159.43,159.33,5.28309837]
[1754182995125,94.97754717,159.5,159.36,5.28309837]
[1754182995318,6.2739,159.43,159.36,5.28309837]
[1754182995621,119.04,159.43,159.34,5.28309837]
[1754182995820,6.2754,159.4,159.34,5.28309837]
[1754182996019,119.04,159.43,159.34,5.28309837]
[1754182996521,6.2746,159.42,159.36,6.2763]
[1754182997517,119.04,159.43,159.37,5.28309837]
[1754182998420,119.04,159.43,159.28,5.28309837]
[1754182998720,119.04,159.43,159.34,5.28309837]
[1754182998923,119.04,159.43,159.34,11.56039837]
[1754182999223,119.04,159.43,159.34,5.28309837]
[1754183000319,24.09309837,159.47,159.34,5.28309837]
[1754183000624,119.04,159.46,159.34,5.28309837]
[1754183001731,5.28309837,159.44,159.32,5.28309837]
[1754183001931,6.2756,159.39,159.34,6.2773]
[1754183002225,5.28309837,159.44,159.32,5.28309837]
[1754183002427,6.2766,159.36,159.31,6.2786]
[1754183002619,5.28309837,159.41,159.31,6.2786]
[1754183002817,5.28309837,159.41,159.29,5.28309837]
[1754183004225,6.2769,159.36,159.29,6.279]
[1754183004426,124.36309837,159.38,159.29,6.279]
[1754183004630,124.36309837,159.38,159.28,5.28309837]
[1754183004830,119.08,159.38,159.28,5.28309837]
[1754183005029,119.08,159.38,159.31,5.28309837]
[1754183005216,119.08,159.41,159.33,6.2775]
[1754183005421,5.28309837,159.42,159.31,5.28309837]
[1754183005725,119.08,159.41,159.31,5.28309837]
[1754183005929,6.2761,159.38,159.3,5.28309837]
[1754183006523,6.2755,159.39,159.34,6.2774]
[1754183006919,6.2755,159.39,159.3,5.28309837]
[1754183007126,119.08,159.41,159.3,5.28309837]
[1754183007127,6.2759,159.38,159.3,5.28309837]
[1754183007622,119.08,159.41,159.34,6.2774]
[1754183007826,119.08,159.41,159.3,5.28309837]
[1754183008033,119.08,159.41,159.31,6.2782]
[1754183008224,6.2765,159.37,159.31,6.2782]
[1754183008834,119.08,159.41,159.3,5.28309837]
[1754183009124,119.08,159.41,159.33,5.28309837]
[1754183009323,6.2757,159.39,159.34,6.277]
[1754183009525,119.08,159.41,159.33,5.28309837]
[1754183009922,119.08,159.41,159.25,119.04]
[1754183010232,5.28309837,159.39,159.28,5.28309837]
[1754183010930,5.28309837,159.39,159.26,5.28309837]
[1754183011732,6.2774,159.34,159.28,6.2794]
[1754183011927,5.28309837,159.39,159.28,6.2794]
[1754183012132,6.2765,159.37,159.3,6.2786]
[1754183012331,5.28309837,159.39,159.26,5.28309837]
[1754183013134,6.2775,159.34,159.28,6.2796]
[1754183013322,5.28309837,159.39,159.26,5.28309837]
[1754183013937,6.2772,159.35,159.29,6.279]
[1754183014131,5.28309837,159.39,159.26,5.28309837]
[1754183014332,119.08,159.41,159.2,421.34]
[1754183014333,119.08,159.41,159.29,5.28309837]
[1754183015034,119.08,159.41,159.32,5.28309837]
[1754183015226,119.08,159.41,159.2,422.43250161]
[1754183015429,6.2753,159.4,159.34,6.277]
[1754183015833,6.2753,159.4,159.32,5.28309837]
[1754183016440,119.08,159.41,159.32,5.28309837]
[1754183016934,6.276,159.38,159.32,11.56099837]
[1754183017134,6.276,159.38,159.32,6.2779]
[1754183017329,119.08,159.41,159.29,5.28309837]
[1754183018030,137.89,159.41,159.29,5.28309837]
[1754183018230,5.28309837,159.39,159.27,5.28309837]
[1754183018632,119.08,159.41,159.33,5.28309837]
[1754183019534,6.2755,159.39,159.33,5.28309837]
[1754183019936,119.08,159.41,159.33,5.28309837]
[1754183020137,421.66,159.44,159.36,5.28309837]
[1754183020539,6.2758,159.39,159.36,5.28309837]
[1754183020739,421.66,159.44,159.36,5.28309837]
[1754183021041,426.94309837,159.44,159.33,5.28309837]
[1754183021237,540.78,159.44,159.36,5.28309837]
[1754183022838,559.59,159.44,159.21,12.5647]
[1754183023243,559.59,159.44,159.31,5.28309837]
[1754183023540,5.28309837,159.42,159.2,541.53250161]
[1754183023744,5.28309837,159.42,159.28,5.28309837]
[1754183023941,5.28309837,159.42,159.31,5.28309837]
[1754183024346,5.28309837,159.42,159.2,541.53250161]
[1754183024644,6.2769,159.36,159.3,5.28309837]
[1754183025346,6.2769,159.36,159.2,541.53250161]
[1754183025347,119.14,159.38,159.27,5.28309837]
[1754183026546,5.28309837,159.36,159.24,5.28309837]
[1754183027148,24.09309837,159.36,159.24,5.28309837]
[1754183027550,24.09309837,159.36,159.22,5.28309837]
[1754183027746,24.09309837,159.36,159.23,6.2814]
[1754183028248,6.2794,159.29,159.23,6.2814]
[1754183028450,119.12,159.32,159.23,6.2814]
[1754183028749,6.2793,159.3,159.23,6.2814]
[1754183028939,119.12,159.32,159.22,5.28309837]
[1754183029143,119.12,159.32,159.25,5.28309837]
[1754183029347,119.12,159.32,159.22,6.2818]
[1754183029552,119.12,159.32,159.23,5.28309837]
[1754183030146,6.2792,159.3,159.23,5.28309837]
[1754183030356,5.28309837,159.36,159.26,5.28309837]
[1754183030651,6.2778,159.33,159.26,5.28309837]
[1754183030843,124.40309837,159.36,159.27,3.44]
[1754183030844,3.47,159.35,159.27,3.44]
[1754183031846,5.28309837,159.33,159.22,3.44]
[1754183032053,3.47,159.32,159.22,3.44]
[1754183032250,6.2799,159.28,159.22,3.44]
[1754183032450,9.7499,159.28,159.22,3.44]
[1754183032753,9.7498,159.28,159.22,3.44]
[1754183033053,3.47,159.27,159.2,3.44]
[1754183033448,119.12,159.29,159.19,3.44]
[1754183033649,3.47,159.22,159.18,5.28309837]
[1754183033849,3.47,159.22,159.21,3.44]
[1754183034056,3.47,159.21,159.19,3.44]
[1754183034251,3.47,159.23,159.16,5.28309837]
[1754183034454,3.47,159.23,159.21,3.44]
[1754183034751,3.47,159.25,159.17,3.44]
[1754183035146,3.47,159.25,159.11,421.88]
[1754183035351,3.47,159.24,159.14,3.44]
[1754183036053,3.47,159.22,159.16,3.44]
[1754183036457,6.2826,159.21,159.14,6.2849]
[1754183036656,5.28309837,159.25,159.15,3.44]
[1754183036657,3.47,159.24,159.15,3.44]
[1754183037050,3.47,159.22,159.16,3.44]
[1754183037760,9.7526,159.21,159.16,3.44]
[1754183037954,3.47,159.2,159.16,3.44]
[1754183038550,3.47,159.22,159.16,3.44]
[1754183038750,7.01136368,159.28,159.16,8.72309837]
[1754183038957,3.47,159.27,159.17,3.44]
[1754183039253,6.2813,159.24,159.18,6.2836]
[1754183039459,3.47,159.27,159.17,3.44]
[1754183039850,6.282,159.23,159.17,3.44]
[1754183040651,9.7514,159.24,159.17,3.44]
[1754183040851,3.47,159.24,159.17,3.44]
[1754183042052,6.282,159.23,159.17,9.7239]
[1754183042258,3.52,159.22,159.18,3.42]
[1754183042553,6.2814,159.24,159.18,6.2836]
[1754183042750,5.28309837,159.28,159.2,3.42]
[1754183042957,3.52,159.25,159.21,3.42]
[1754183043155,3.52,159.26,159.23,3.42]
[1754183043358,3.52,159.26,159.2,3.42]
[1754183043755,122.64,159.29,159.24,3.42]
[1754183044161,3.52,159.29,159.24,3.42]
[1754183044460,3.52,159.3,159.24,3.42]
[1754183044663,6.28,159.28,159.19,5.28309837]
[1754183044860,3.52,159.28,159.2,3.42]
[1754183045058,3.52,159.3,159.23,3.42]
[1754183045260,6.2793,159.29,159.24,6.2813]
[1754183045463,3.52,159.29,159.26,3.42]
[1754183045653,3.52,159.29,159.27,3.42]
[1754183045961,3.52,159.28,159.26,3.42]
[1754183046756,3.52,159.3,159.22,5.28309837]
[1754183046956,3.52,159.32,159.3,3.42]
[1754183047156,3.52,159.32,159.28,3.42]
[1754183047356,7.01136368,159.34,159.26,3.42]
[1754183047559,3.52,159.33,159.26,3.42]
[1754183047758,3.52,159.33,159.23,5.28309837]
[1754183047959,3.52,159.33,159.24,3.42]
[1754183048154,6.2787,159.31,159.25,6.2807]
[1754183048354,3.52,159.33,159.24,3.42]
[1754183049566,3.52,159.28,159.24,3.42]
[1754183049767,3.52,159.28,159.18,3.42]
[1754183049969,3.52,159.27,159.23,5.28309837]
[1754183050167,3.52,159.27,159.26,3.42]
[1754183050566,6.2789,159.3,159.26,3.42]
[1754183050766,3.52,159.28,159.27,3.42]
[1754183050962,3.52,159.33,159.29,3.42]
[1754183051264,3.52,159.34,159.27,3.42]
[1754183051862,3.52,159.35,159.31,3.42]
[1754183052059,3.52,159.37,159.32,5.28309837]
[1754183052268,9.7961,159.37,159.33,3.42]
[1754183052466,3.52,159.4,159.33,3.42]
[1754183052664,3.52,159.4,159.36,3.42]
[1754183053065,122.82,159.41,159.36,3.42]
[1754183053567,3.52,159.41,159.36,3.42]
[1754183053768,3.52,159.4,159.37,3.42]
[1754183053969,3.52,159.4,159.38,3.42]
[1754183054159,3.52,159.39,159.38,3.42]
[1754183055573,3.52,159.39,159.36,3.42]
[1754183055771,3.52,159.39,159.37,3.42]
[1754183056069,3.52,159.38,159.37,3.42]
[1754183056271,3.52,159.37,159.34,3.42]
[1754183056466,3.52,159.36,159.34,3.42]
[1754183057060,3.52,159.36,159.35,3.42]
[1754183058170,122.74,159.4,159.35,3.42]
[1754183058372,122.74,159.4,159.35,8.70309837]
[1754183058674,122.74,159.4,159.36,9.6964]
[1754183058874,122.74,159.4,159.37,3.42]
[1754183059076,122.74,159.4,159.38,3.42]
[1754183059374,3.52,159.39,159.38,3.42]
[1754183059565,119.22,159.4,159.38,3.42]
[1754183059764,3.52,159.42,159.38,3.42]
[1754183060171,3.52,159.42,159.36,3.42]
[1754183060471,3.52,159.46,159.38,5.28309837]
[1754183060671,3.52,159.46,159.39,3.42]
[1754183060871,3.52,159.46,159.42,3.42]
[1754183061172,3.52,159.47,159.39,3.42]
[1754183061573,3.52,159.47,159.29,3.42]
[1754183061879,3.52,159.47,159.36,3.42]
[1754183062070,6.2744,159.42,159.37,6.276]
[1754183062271,3.52,159.45,159.39,3.42]
[1754183062669,3.52,159.47,159.39,3.42]
[1754183063271,3.52,159.47,159.42,3.42]
[1754183063466,3.52,159.47,159.38,3.42]
[1754183064469,3.52,159.44,159.36,3.42]
[1754183064772,3.52,159.42,159.36,3.42]
[1754183064974,6.2752,159.4,159.36,3.42]
[1754183065678,3.52,159.38,159.37,3.42]
[1754183065875,6.2746,159.41,159.35,3.42]
[1754183066073,3.52,159.39,159.35,3.42]
[1754183066269,3.52,159.38,159.34,5.28309837]
[1754183066475,3.52,159.37,159.36,3.42]
[1754183067474,9.7956,159.39,159.36,3.42]
[1754183067771,6.2758,159.38,159.35,3.42]
[1754183067978,3.52,159.42,159.35,3.42]
[1754183068273,3.52,159.42,159.34,5.28309837]
[1754183068476,119.1,159.43,159.31,3.42]
[1754183068477,3.52,159.4,159.31,3.42]
[1754183068869,6.2765,159.36,159.31,9.6981]
[1754183069173,3.52,159.4,159.29,3.42]
[1754183069479,3.52,159.4,159.29,6.2789]
[1754183069672,3.52,159.4,159.3,3.42]
[1754183070167,3.52,159.4,159.3,9.6987]
[1754183070368,3.52,159.4,159.31,3.42]
[1754183070977,3.52,159.35,159.31,3.42]
[1754183071370,24.12309837,159.41,159.31,3.42]
[1754183071571,3.5,159.32,159.31,3.42]
[1754183071768,3.5,159.31,159.27,3.53]
[1754183071968,3.5,159.31,159.28,6.2795]
[1754183072475,5.28309837,159.38,159.22,422.06]
[1754183072476,3.5,159.37,159.25,3.53]
[1754183073171,24.12309837,159.38,159.27,6.2797]
[1754183073478,5.28309837,159.35,159.25,3.53]
[1754183073682,6.2796,159.29,159.25,3.53]
[1754183073881,3.5,159.34,159.23,3.53]
[1754183074178,5.28309837,159.32,159.23,3.53]
[1754183075679,6.2797,159.28,159.23,3.53]
[1754183075875,5.28309837,159.32,159.23,3.53]
[1754183076076,6.281,159.25,159.23,3.53]
[1754183076280,5.28309837,159.32,159.23,3.53]
[1754183076978,5.28309837,159.29,159.23,3.53]
[1754183077371,6.2809,159.25,159.19,6.2831]
[1754183077584,3.5,159.24,159.2,3.53]
[1754183078784,3.5,159.24,159.2,8.81309837]
[1754183079078,3.5,159.3,159.21,3.53]
[1754183079482,6.28,159.28,159.22,6.282]
[1754183079679,3.5,159.3,159.23,3.53]
[1754183079874,6.2788,159.3,159.23,9.8113]
[1754183080183,9.7788,159.3,159.24,3.53]
[1754183080476,9.7788,159.3,159.23,5.28309837]
[1754183080681,3.5,159.3,159.24,3.53]
[1754183081380,6.2783,159.32,159.23,5.28309837]
[1754183081381,6.2783,159.32,159.28,3.53]
[1754183081686,9.7783,159.32,159.28,3.53]
[1754183082380,9.7783,159.32,159.26,6.2803]
[1754183082381,3.5,159.31,159.3,3.53]
[1754183083181,3.5,159.34,159.28,3.53]
[1754183083383,3.5,159.34,159.26,5.28309837]
[1754183083384,3.5,159.34,159.26,3.53]
[1754183084180,5.28309837,159.34,159.25,3.53]
[1754183084385,3.5,159.33,159.25,3.53]
[1754183084572,3.5,159.33,159.24,3.53]
[1754183085478,24.12309837,159.34,159.24,3.53]
[1754183085479,3.5,159.26,159.24,3.53]
[1754183085678,5.28309837,159.31,159.13,421.8]
[1754183085880,3.5,159.3,159.18,5.28309837]
[1754183086076,3.5,159.3,159.19,3.53]
[1754183087285,9.7804,159.26,159.19,3.53]
[1754183087780,3.5,159.28,159.22,3.53]
[1754183088583,3.5,159.27,159.24,3.53]
[1754183088888,3.5,159.27,159.21,5.28309837]
[1754183089085,3.5,159.27,159.26,3.53]
[1754183089286,3.5,159.32,159.22,3.53]
[1754183089776,6.2797,159.28,159.22,3.53]
[1754183089973,3.5,159.28,159.22,3.53]